fUST/lending_fUST_20240613
["ID","MTS","AMOUNT","RATE_DAILY","PERIOD"]
[329306091,1718229062959,-708.63,0.00019178,2]
[329306092,1718229062970,-548.25,0.00019178,2]
[329306093,1718229062981,-896.75,0.00019178,2]
[329306094,1718229062993,-500.0,0.00019178,2]
[329306095,1718229063025,-500.0,0.00019178,2]
[329306096,1718229063036,-151.0,0.00019178,2]
[329306097,1718229063048,-500.0,0.00019178,2]
[329306098,1718229063061,-786.08,0.00019178,2]
[329306099,1718229063074,-500.0,0.00019178,2]
[329306100,1718229063085,-1203.78,0.00019178,2]
[329306101,1718229063096,-251.66,0.00019178,2]
[329306102,1718229063108,-1530.07,0.00019178,2]
[329306103,1718229063118,-500.0,0.00019178,2]
[329306104,1718229063129,-615.2,0.00019178,2]
[329306105,1718229063139,-500.0,0.00019178,2]
[329306106,1718229063151,-1072.7,0.00019178,2]
[329306107,1718229063162,-500.0,0.00019178,2]
[329306108,1718229063173,-467.10765048,0.00019178,2]
[329306109,1718229063184,-3554.71,0.00019178,2]
[329306110,1718229063196,-500.0,0.00019178,2]
[329306111,1718229063207,-687.87,0.00019178,2]
[329306112,1718229063219,-854.56,0.00019178,2]
[329306113,1718229063231,-500.0,0.00019178,2]
[329306114,1718229063241,-3231.15,0.00019178,2]
[329306115,1718229063252,-3415.81,0.00019178,2]
[329306116,1718229063263,-8735.61,0.00019178,2]
[329306117,1718229063274,-500.0,0.00019178,2]
[329306118,1718229063285,-500.0,0.00019178,2]
[329306119,1718229063296,-619.05,0.00019178,2]
[329306120,1718229063307,-1837.26,0.00019178,2]
[329306121,1718229063317,-2568.17,0.00019178,2]
[329306122,1718229063329,-197.811858,0.00019178,2]
[329306123,1718229063340,-197.811858,0.00019178,2]
[329306124,1718229063350,-4899.48,0.00019178,2]
[329306125,1718229063361,-849.76,0.00019178,2]
[329306126,1718229063371,-946.69,0.00019178,2]
[329306127,1718229063383,-804.25,0.00019178,2]
[329306128,1718229063394,-500.0,0.00019178,2]
[329306129,1718229063406,-500.0,0.00019178,2]
[329306130,1718229063417,-196.484063,0.00019178,2]
[329306131,1718229063428,-500.0,0.00019178,2]
[329306132,1718229063439,-196.484063,0.00019178,2]
[329306133,1718229063451,-500.0,0.00019178,2]
[329306134,1718229063462,-500.0,0.00019178,2]
[329306135,1718229063473,-497.18,0.00019178,2]
[329306136,1718229063485,-734.26,0.00019178,2]
[329306137,1718229063496,-1171.26,0.00019178,2]
[329306138,1718229063506,-500.0,0.00019178,2]
[329306139,1718229063517,-804.26,0.00019178,2]
[329306140,1718229063528,-581.04,0.00019178,2]
[329306141,1718229063539,-996.87,0.00019178,2]
[329306142,1718229063555,-1936.43,0.00019178,2]
[329306143,1718229063574,-167.944531,0.00019178,2]
[329306144,1718229063587,-163.499295,0.00019178,2]
[329306145,1718229063599,-686.18,0.00019452,2]
[329306146,1718229063614,-650.65,0.00019452,2]
[329306147,1718229063629,-500.0,0.00019452,2]
[329306148,1718229063647,-571.77,0.00019452,2]
[329306149,1718229063663,-528.81,0.00019452,2]
[329306150,1718229063679,-504.86,0.00019452,2]
[329306151,1718229063692,-500.0,0.00019452,2]
[329306152,1718229063706,-500.0,0.00019452,2]
[329306153,1718229063717,-500.0,0.00019452,2]
[329306154,1718229063729,-500.0,0.00019452,2]
[329306155,1718229063742,-672.08,0.00019452,2]
[329306156,1718229063754,-708.63,0.00019452,2]
[329306157,1718229063765,-548.25,0.00019452,2]
[329306158,1718229063779,-896.75,0.00019452,2]
[329306159,1718229063794,-500.0,0.00019452,2]
[329306160,1718229063809,-151.0,0.00019452,2]
[329306161,1718229063822,-500.0,0.00019452,2]
[329306162,1718229063834,-163.389518,0.00019452,2]
[329306163,1718229063846,-786.08,0.00019452,2]
[329306164,1718229063863,-500.0,0.00019452,2]
[329306165,1718229063875,-1203.78,0.00019452,2]
[329306166,1718229063890,-268.995985,0.00019452,2]
[329306167,1718229063905,-1530.07,0.00019452,2]
[329306168,1718229063916,-500.0,0.00019452,2]
[329306169,1718229063929,-615.2,0.00019452,2]
[329306170,1718229063940,-500.0,0.00019452,2]
[329306171,1718229063952,-1072.7,0.00019452,2]
[329306172,1718229063965,-500.0,0.00019452,2]
[329306173,1718229063975,-151.0,0.00019452,2]
[329306174,1718229063987,-3554.71,0.00019452,2]
[329306175,1718229063999,-500.0,0.00019452,2]
[329306176,1718229064038,-687.87,0.00019452,2]
[329306177,1718229064050,-151.0,0.00019452,2]
[329306178,1718229064062,-221.216068,0.00019452,2]
[329306179,1718229064075,-854.56,0.00019452,2]
[329306180,1718229064087,-500.0,0.00019452,2]
[329306181,1718229064098,-3231.15,0.00019452,2]
[329306182,1718229064109,-3415.81,0.00019452,2]
[329306183,1718229064121,-8735.61,0.00019452,2]
[329306184,1718229064132,-433.06,0.00019452,2]
[329306185,1718229064143,-236.46767737,0.00019452,2]
[329306186,1718229064154,-619.05,0.00019452,2]
[329306187,1718229064164,-1837.26,0.00019452,2]
[329306188,1718229064175,-2568.17,0.00019452,2]
[329306189,1718229064186,-4899.48,0.00019452,2]
[329306190,1718229064197,-849.76,0.00019452,2]
[329306191,1718229064207,-946.69,0.00019452,2]
[329306192,1718229064219,-804.25,0.00019452,2]
[329306193,1718229064232,-500.0,0.00019452,2]
[329306194,1718229064243,-500.0,0.00019452,2]
[329306195,1718229064254,-233.44,0.00019452,2]
[329306196,1718229064265,-500.0,0.00019452,2]
[329306197,1718229064277,-500.0,0.00019452,2]
[329306198,1718229064287,-734.26,0.00019452,2]
[329306199,1718229064298,-1171.26,0.00019452,2]
[329306200,1718229064310,-500.0,0.00019452,2]
[329306201,1718229064322,-804.26,0.00019452,2]
[329306202,1718229064333,-581.04,0.00019452,2]
[329306203,1718229064345,-996.87,0.00019452,2]
[329306204,1718229064356,-1936.43,0.00019452,2]
[329306205,1718229064367,-800.0,0.000196,2]
[329306206,1718229064379,-686.18,0.00019726,2]
[329306207,1718229064391,-650.65,0.00019726,2]
[329306208,1718229064402,-359.05695255,0.00019726,2]
[329306209,1718229064416,-571.77,0.00019726,2]
[329306210,1718229064427,-528.81,0.00019726,2]
[329306211,1718229064439,-500.0,0.00019726,2]
[329306212,1718229064449,-500.0,0.00019726,2]
[329306213,1718229064460,-500.0,0.00019726,2]
[329306214,1718229064472,-500.0,0.00019726,2]
[329306215,1718229064484,-672.08,0.00019726,2]
[329306216,1718229064495,-151.0,0.00019726,2]
[329306217,1718229064506,-708.63,0.00019726,2]
[329306218,1718229064517,-548.25,0.00019726,2]
[329306219,1718229064527,-151.0,0.00019726,2]
[329306220,1718229064538,-896.75,0.00019726,2]
[329306221,1718229064554,-251.84,0.00019726,2]
[329306222,1718229064566,-786.08,0.00019726,2]
[329306223,1718229064577,-500.0,0.00019726,2]
[329306224,1718229064591,-1203.78,0.00019726,2]
[329306225,1718229064605,-1530.07,0.00019726,2]
[329306226,1718229064616,-500.0,0.00019726,2]
[329306227,1718229064629,-615.2,0.00019726,2]
[329306228,1718229064642,-500.0,0.00019726,2]
[329306229,1718229064654,-1072.7,0.00019726,2]
[329306230,1718229064666,-548.24582605,0.00019726,2]
[329306231,1718229064680,-3554.71,0.00019726,2]
[329306232,1718229064692,-500.0,0.00019726,2]
[329306233,1718229064703,-687.87,0.00019726,2]
[329306234,1718229064715,-854.56,0.00019726,2]
[329306235,1718229064727,-500.0,0.00019726,2]
[329306236,1718229064737,-3231.15,0.00019726,2]
[329306237,1718229064748,-3415.81,0.00019726,2]
[329306238,1718229064761,-8735.61,0.00019726,2]
[329306239,1718229064772,-619.05,0.00019726,2]
[329306240,1718229064783,-1837.26,0.00019726,2]
[329306241,1718229064796,-2568.17,0.00019726,2]
[329306242,1718229064806,-4899.48,0.00019726,2]
[329306243,1718229064819,-849.76,0.00019726,2]
[329306244,1718229064831,-946.69,0.00019726,2]
[329306245,1718229064842,-804.25,0.00019726,2]
[329306246,1718229064853,-500.0,0.00019726,2]
[329306247,1718229064865,-500.0,0.00019726,2]
[329306248,1718229064880,-500.0,0.00019726,2]
[329306249,1718229064894,-500.0,0.00019726,2]
[329306250,1718229064904,-734.26,0.00019726,2]
[329306251,1718229064915,-1171.26,0.00019726,2]
[329306252,1718229064926,-500.0,0.00019726,2]
[329306253,1718229064936,-804.26,0.00019726,2]
[329306254,1718229064947,-581.04,0.00019726,2]
[329306255,1718229064959,-996.87,0.00019726,2]
[329306256,1718229064970,-1936.43,0.00019726,2]
[329306257,1718229064982,-6898.12951303,0.0001976,2]
[329306258,1718229064993,-621.4543879,0.00019766,2]
[329306259,1718229065024,-151.0,0.00019859,2]
[329306260,1718229065036,-587.0,0.00019884,2]
[329306261,1718229065047,-507.1316028,0.00019888,2]
[329306277,1718230234666,-230.00874479,0.00016338,2]
[329306278,1718230234677,-155.01395126,0.00016436,2]
[329306279,1718230234689,-155.01395126,0.00016436,2]
[329306280,1718230234701,-239.0,0.00016436,2]
[329306281,1718230234712,-5808.25365509,0.00016437,2]
[329306282,1718230234724,-300.0,0.00016437,2]
[329306284,1718230234739,-500.0,0.00016438,2]
[329306286,1718230234752,-500.0,0.00016438,2]
[329306288,1718230234764,-500.0,0.00016438,2]
[329306289,1718230234774,-500.0,0.00016438,2]
[329306291,1718230234785,-250.0,0.00016438,2]
[329306293,1718230234797,-500.0,0.00016438,2]
[329306294,1718230234807,-500.0,0.00016438,2]
[329306295,1718230235011,-501.51613761,0.00016438,2]
[329306296,1718230235023,-500.0,0.00016438,2]
[329306297,1718230235034,-500.0,0.00016438,4]
[329306298,1718230235049,-500.0,0.00016438,2]
[329306299,1718230235061,-500.0,0.00016438,2]
[329306300,1718230235076,-500.0,0.00016438,2]
[329306301,1718230235088,-500.0,0.00016438,2]
[329306302,1718230235112,-500.0,0.00016438,2]
[329306303,1718230235124,-364.57345289,0.00016438,2]
[329306304,1718230235135,-500.0,0.00016438,2]
[329306305,1718230235148,-500.0,0.00016438,2]
[329306306,1718230235161,-500.0,0.00016438,2]
[329306307,1718230235174,-500.0,0.00016438,2]
[329306308,1718230235188,-500.0,0.00016438,2]
[329306309,1718230235199,-500.0,0.00016438,2]
[329306310,1718230235211,-500.0,0.00016438,2]
[329306311,1718230235222,-500.0,0.00016438,2]
[329306312,1718230235233,-521.85317343,0.00016438,2]
[329306313,1718230235246,-500.0,0.00016438,2]
[329306314,1718230235258,-500.0,0.00016438,2]
[329306315,1718230235269,-500.0,0.00016438,2]
[329306316,1718230235283,-500.0,0.00016438,2]
[329306317,1718230235294,-500.0,0.00016438,2]
[329306318,1718230235305,-500.0,0.00016438,2]
[329306319,1718230235315,-500.0,0.00016438,2]
[329306320,1718230235328,-589.52750579,0.00016438,2]
[329306321,1718230235338,-500.0,0.00016438,2]
[329306322,1718230235349,-470.83296756,0.00016438,2]
[329306323,1718230235360,-500.0,0.00016438,2]
[329306324,1718230235371,-500.0,0.00016438,2]
[329306325,1718230235381,-502.89719724,0.00016438,2]
[329306326,1718230235393,-500.0,0.00016438,2]
[329306327,1718230235403,-538.37,0.00016438,2]
[329306328,1718230235414,-500.0,0.00016438,2]
[329306329,1718230235426,-500.0,0.00016438,2]
[329306330,1718230235456,-514.89471071,0.00016438,2]
[329306331,1718230235467,-500.0,0.00016438,2]
[329306332,1718230235478,-372.38365105,0.00016438,2]
[329306333,1718230235489,-500.0,0.00016438,2]
[329306334,1718230235499,-500.0,0.00016438,2]
[329306335,1718230235509,-500.52859361,0.00016438,2]
[329306336,1718230235520,-519.0152433,0.00016438,2]
[329306337,1718230235530,-500.0,0.00016438,2]
[329306338,1718230235540,-500.0,0.00016438,2]
[329306339,1718230235552,-500.0,0.00016438,2]
[329306340,1718230235565,-500.0,0.00016438,2]
[329306341,1718230235576,-500.0,0.00016438,2]
[329306342,1718230235587,-500.0,0.00016438,2]
[329306343,1718230235600,-500.0,0.00016438,2]
[329306344,1718230235612,-500.0,0.00016438,2]
[329306345,1718230235627,-535.26953597,0.00016438,2]
[329306346,1718230235637,-500.0,0.00016438,2]
[329306347,1718230235649,-500.0,0.00016438,2]
[329306348,1718230235661,-500.0,0.00016438,2]
[329306349,1718230235675,-551.0,0.00016438,2]
[329306350,1718230235687,-502.681243,0.00016438,2]
[329306351,1718230235699,-500.0,0.00016438,2]
[329306352,1718230235711,-525.08013651,0.00016438,2]
[329306353,1718230235722,-500.0,0.00016438,2]
[329306354,1718230235732,-500.0,0.00016438,2]
[329306355,1718230235743,-500.0,0.00016438,2]
[329306356,1718230235754,-504.62764149,0.00016438,2]
[329306357,1718230235766,-500.0,0.00016438,2]
[329306358,1718230235777,-500.0,0.00016438,2]
[329306359,1718230235790,-500.0,0.00016438,2]
[329306360,1718230235802,-500.0,0.00016438,2]
[329306361,1718230235813,-500.0,0.00016438,2]
[329306362,1718230235825,-500.0,0.00016438,2]
[329306363,1718230235837,-500.0,0.00016438,2]
[329306364,1718230235849,-500.0,0.00016438,2]
[329306365,1718230235861,-501.35511988,0.00016438,2]
[329306366,1718230235871,-500.0,0.00016438,2]
[329306367,1718230235881,-500.0,0.00016438,2]
[329306368,1718230235891,-500.0,0.00016438,2]
[329306369,1718230235902,-500.0,0.00016438,2]
[329306370,1718230235913,-500.0,0.00016438,2]
[329306371,1718230235924,-500.0,0.00016438,2]
[329306372,1718230235934,-500.0,0.00016438,2]
[329306373,1718230235946,-500.0,0.00016438,2]
[329306374,1718230235957,-500.0,0.00016438,2]
[329306375,1718230235968,-500.0,0.00016438,2]
[329306376,1718230235979,-500.0,0.00016438,2]
[329306377,1718230235994,-500.0,0.00016438,2]
[329306378,1718230236005,-500.0,0.00016438,2]
[329306379,1718230236015,-500.0,0.00016438,2]
[329306380,1718230236025,-500.0,0.00016438,2]
[329306381,1718230236039,-500.0,0.00016438,2]
[329306382,1718230236051,-500.0,0.00016438,2]
[329306383,1718230236063,-500.0,0.00016438,2]
[329306384,1718230236073,-500.0,0.00016438,2]
[329306385,1718230236085,-500.0,0.00016438,2]
[329306386,1718230236097,-500.0,0.00016438,2]
[329306387,1718230236107,-500.0,0.00016438,2]
[329306388,1718230236119,-177.22902037,0.00016438,2]
[329306389,1718230236140,-322.77097963,0.00016438,2]
[329306390,1718230236151,-500.0,0.00016438,2]
[329306391,1718230236162,-500.0,0.00016438,2]
[329306392,1718230236173,-500.0,0.00016438,2]
[329306393,1718230236183,-386.66803486,0.00016438,2]
[329306425,1718230241094,-113.33196514,0.00016438,2]
[329306426,1718230241105,-500.0,0.00016438,2]
[329306427,1718230241120,-500.0,0.00016438,2]
[329306428,1718230241132,-500.0,0.00016438,2]
[329306429,1718230241143,-500.0,0.00016438,2]
[329306430,1718230241154,-500.0,0.00016438,2]
[329306431,1718230241165,-500.0,0.00016438,2]
[329306432,1718230241179,-500.0,0.00016438,2]
[329306433,1718230241190,-500.0,0.00016438,2]
[329306434,1718230241201,-500.0,0.00016438,2]
[329306435,1718230241214,-500.0,0.00016438,2]
[329306436,1718230241227,-233.99007782,0.00016438,2]
[329306437,1718230241238,-399.08780266,0.00016438,2]
[329306438,1718230241249,-500.0,0.00016438,2]
[329306439,1718230241261,-500.0,0.00016438,2]
[329306440,1718230241274,-500.0,0.00016438,2]
[329306441,1718230241284,-500.0,0.00016438,2]
[329306442,1718230241295,-500.0,0.00016438,2]
[329306443,1718230241306,-500.0,0.00016438,2]
[329306444,1718230241317,-500.0,0.00016438,2]
[329306445,1718230241327,-500.0,0.00016438,2]
[329306446,1718230241340,-500.0,0.00016438,2]
[329306447,1718230241351,-500.0,0.00016438,2]
[329306448,1718230241364,-500.0,0.00016438,2]
[329306449,1718230241375,-500.0,0.00016438,2]
[329306450,1718230241385,-506.25333713,0.00016438,2]
[329306451,1718230241396,-500.0,0.00016438,2]
[329306452,1718230241407,-500.0,0.00016438,2]
[329306453,1718230241418,-500.0,0.00016438,2]
[329306454,1718230241429,-571.7,0.00016438,2]
[329306455,1718230241465,-500.0,0.00016438,2]
[329306456,1718230241476,-500.0,0.00016438,2]
[329306457,1718230241488,-500.0,0.00016438,2]
[329306458,1718230241498,-500.0,0.00016438,2]
[329306459,1718230241509,-500.0,0.00016438,2]
[329306460,1718230241520,-516.66,0.00016438,2]
[329306461,1718230241531,-500.0,0.00016438,2]
[329306462,1718230241541,-339.12345505,0.00016438,2]
[329306463,1718230241552,-259.97692014,0.00016438,2]
[329306464,1718230241563,-500.0,0.00016438,2]
[329306465,1718230241574,-500.0,0.00016438,2]
[329306466,1718230241585,-500.0,0.00016438,2]
[329306467,1718230241596,-510.48259035,0.00016438,2]
[329306468,1718230241606,-500.0,0.00016438,2]
[329306469,1718230241617,-500.0,0.00016438,2]
[329306470,1718230241628,-500.0,0.00016438,2]
[329306471,1718230241639,-500.0,0.00016438,2]
[329306472,1718230241649,-500.0,0.00016438,2]
[329306473,1718230241659,-500.0,0.00016438,2]
[329306474,1718230241669,-500.0,0.00016438,2]
[329306475,1718230241679,-500.0,0.00016438,2]
[329306476,1718230241690,-500.0,0.00016438,2]
[329306477,1718230241700,-500.0,0.00016438,2]
[329306478,1718230241710,-500.0,0.00016438,2]
[329306479,1718230241721,-500.0,0.00016438,2]
[329306480,1718230241733,-684.53,0.00016438,2]
[329306481,1718230241744,-500.0,0.00016438,2]
[329306482,1718230241755,-500.0,0.00016438,2]
[329306483,1718230241766,-500.0,0.00016438,2]
[329306484,1718230241777,-506.08390573,0.00016438,2]
[329306485,1718230241787,-500.0,0.00016438,2]
[329306486,1718230241798,-500.0,0.00016438,2]
[329306487,1718230241808,-501.38610209,0.00016438,2]
[329306488,1718230241819,-500.0,0.00016438,2]
[329306489,1718230241829,-500.0,0.00016438,2]
[329306490,1718230241840,-500.0,0.00016438,2]
[329306491,1718230241851,-642.25321705,0.00016438,2]
[329306492,1718230241861,-500.0,0.00016438,2]
[329306493,1718230241871,-500.0,0.00016438,2]
[329306494,1718230241881,-500.0,0.00016438,2]
[329306495,1718230241891,-500.0,0.00016438,2]
[329306496,1718230241902,-262.21290687,0.00016438,2]
[329306497,1718230241912,-500.0,0.00016438,2]
[329306498,1718230241923,-500.0,0.00016438,2]
[329306499,1718230241934,-274.78572379,0.00016438,2]
[329306500,1718230241944,-500.0,0.00016438,2]
[329306501,1718230241954,-500.0,0.00016438,2]
[329306502,1718230241965,-500.0,0.00016438,2]
[329306503,1718230241978,-500.0,0.00016438,2]
[329306504,1718230241988,-500.0,0.00016438,2]
[329306505,1718230242000,-510.63935521,0.00016438,2]
[329306506,1718230242010,-500.0,0.00016438,2]
[329306507,1718230242024,-500.0,0.00016438,2]
[329306508,1718230242034,-500.0,0.00016438,2]
[329306509,1718230242044,-500.0,0.00016438,2]
[329306510,1718230242056,-500.0,0.00016438,2]
[329306511,1718230242066,-500.0,0.00016438,2]
[329306512,1718230242077,-500.0,0.00016438,2]
[329306513,1718230242087,-500.0,0.00016438,2]
[329306514,1718230242098,-500.0,0.00016438,2]
[329306515,1718230242109,-500.0,0.00016438,2]
[329306516,1718230242119,-500.0,0.00016438,2]
[329306517,1718230242130,-500.0,0.00016438,2]
[329306518,1718230242141,-500.0,0.00016438,2]
[329306519,1718230242154,-500.0,0.00016438,2]
[329306520,1718230242164,-500.0,0.00016438,2]
[329306521,1718230242176,-290.37787744,0.00016438,2]
[329306522,1718230242190,-500.0,0.00016438,2]
[329306523,1718230242203,-500.0,0.00016438,2]
[329306524,1718230242215,-500.0,0.00016438,2]
[329306525,1718230242238,-500.0,0.00016438,2]
[329306526,1718230242252,-500.0,0.00016438,2]
[329306527,1718230242267,-500.0,0.00016438,2]
[329306528,1718230242283,-622.42,0.00016438,2]
[329306529,1718230242293,-500.0,0.00016438,2]
[329306530,1718230242306,-500.0,0.00016438,2]
[329306531,1718230242325,-517.48761169,0.00016438,2]
[329306532,1718230242335,-764.43,0.00016438,2]
[329306533,1718230242347,-500.0,0.00016438,2]
[329306534,1718230242357,-500.0,0.00016438,2]
[329306535,1718230242368,-500.0,0.00016438,2]
[329306536,1718230242380,-500.0,0.00016438,2]
[329306537,1718230242392,-500.0,0.00016438,2]
[329306538,1718230242402,-1108.71,0.00016438,2]
[329306539,1718230242411,-500.0,0.00016438,2]
[329306540,1718230242422,-2444.01,0.00016438,2]
[329306541,1718230242432,-500.0,0.00016438,2]
[329306542,1718230242460,-500.85924365,0.00016438,2]
[329306543,1718230242471,-500.0,0.00016438,2]
[329306544,1718230242482,-500.0,0.00016438,2]
[329306545,1718230242493,-500.0,0.00016438,2]
[329306546,1718230242502,-500.0,0.00016438,2]
[329306547,1718230242513,-500.0,0.00016438,2]
[329306548,1718230242523,-500.0,0.00016438,2]
[329306549,1718230242535,-500.0,0.00016438,2]
[329306550,1718230242546,-500.0,0.00016438,2]
[329306551,1718230242557,-505.42,0.00016438,2]
[329306552,1718230242570,-500.0,0.00016438,2]
[329306553,1718230242584,-525.85647895,0.00016438,2]
[329306554,1718230242594,-500.0,0.00016438,2]
[329306555,1718230242605,-500.0,0.00016438,2]
[329306556,1718230242620,-607.44,0.00016438,2]
[329306557,1718230242632,-500.0,0.00016438,2]
[329306558,1718230242643,-500.0,0.00016438,2]
[329306559,1718230242654,-2271.14,0.00016438,2]
[329306560,1718230242665,-500.0,0.00016438,2]
[329306561,1718230242676,-505.79444727,0.00016438,2]
[329306562,1718230242687,-6255.66,0.00016438,2]
[329306563,1718230242698,-500.0,0.00016438,2]
[329306564,1718230242725,-317.09866361,0.00016438,2]
[329306565,1718230242736,-500.0,0.00016438,2]
[329306566,1718230242747,-500.0,0.00016438,2]
[329306567,1718230242758,-500.0,0.00016438,2]
[329306568,1718230242769,-500.0,0.00016438,2]
[329306569,1718230242779,-2632.92,0.00016438,2]
[329306570,1718230242790,-500.0,0.00016438,2]
[329306571,1718230242800,-500.0,0.00016438,2]
[329306572,1718230242811,-500.0,0.00016438,2]
[329306573,1718230242822,-500.0,0.00016438,2]
[329306574,1718230242833,-500.0,0.00016438,2]
[329306575,1718230242844,-500.0,0.00016438,2]
[329306576,1718230242856,-500.0,0.00016438,2]
[329306577,1718230242867,-500.0,0.00016438,2]
[329306578,1718230242878,-500.0,0.00016438,2]
[329306579,1718230242889,-346.06935248,0.00016438,2]
[329306580,1718230242900,-500.0,0.00016438,2]
[329306581,1718230242910,-391.49373107,0.00016438,2]
[329306582,1718230242921,-1448.52,0.00016438,2]
[329306583,1718230242933,-500.0,0.00016438,2]
[329306584,1718230242943,-612.8838084,0.00016438,2]
[329306585,1718230242954,-500.0,0.00016438,2]
[329306586,1718230242965,-425.87217413,0.00016438,2]
[329306587,1718230242977,-500.0,0.00016438,2]
[329306588,1718230242990,-2002.44,0.00016438,2]
[329306589,1718230243001,-500.0,0.00016438,2]
[329306590,1718230243011,-500.0,0.00016438,2]
[329306591,1718230243023,-501.42818865,0.00016438,2]
[329306592,1718230243034,-500.0,0.00016438,2]
[329306593,1718230243045,-500.0,0.00016438,2]
[329306594,1718230243056,-500.0,0.00016438,2]
[329306595,1718230243070,-614.41,0.00016438,2]
[329306597,1718230243082,-500.0,0.00016438,2]
[329306599,1718230243094,-500.0,0.00016438,2]
[329306601,1718230243105,-3340.25,0.00016438,2]
[329306603,1718230243115,-500.0,0.00016438,2]
[329306605,1718230243129,-661.63,0.00016438,2]
[329306608,1718230243159,-236.5197406,0.00016438,2]
[329306609,1718230243171,-208.50340544,0.00016438,2]
[329306610,1718230243181,-500.0,0.00016438,2]
[329306611,1718230243196,-500.0,0.00016438,2]
[329306612,1718230243337,-500.0,0.00016438,2]
[329306613,1718230243351,-502.81665185,0.00016438,2]
[329306614,1718230243363,-500.0,0.00016438,2]
[329306615,1718230243377,-500.0,0.00016438,2]
[329306616,1718230243388,-601.85,0.00016438,2]
[329306617,1718230243399,-500.0,0.00016438,2]
[329306618,1718230243412,-500.0,0.00016438,2]
[329306619,1718230243424,-500.0,0.00016438,2]
[329306620,1718230243452,-500.0,0.00016438,2]
[329306622,1718230243471,-500.0,0.00016438,2]
[329306623,1718230243484,-500.0,0.00016438,2]
[329306624,1718230243496,-500.0,0.00016438,2]
[329306625,1718230243507,-500.0,0.00016438,2]
[329306626,1718230243533,-329.91393294,0.00016438,2]
[329306627,1718230243660,-170.08606706,0.00016438,2]
[329306628,1718230243671,-500.0,0.00016438,2]
[329306629,1718230243681,-500.0,0.00016438,2]
[329306630,1718230243692,-500.0,0.00016438,2]
[329306631,1718230243702,-859.57,0.00016438,2]
[329306632,1718230243712,-523.25687373,0.00016438,2]
[329306633,1718230243722,-500.0,0.00016438,2]
[329306634,1718230243733,-500.0,0.00016438,2]
[329306635,1718230243743,-517.98234788,0.00016438,2]
[329306636,1718230243754,-500.0,0.00016438,2]
[329306637,1718230243764,-552.48,0.00016438,2]
[329306638,1718230243774,-500.0,0.00016438,2]
[329306639,1718230243785,-500.0,0.00016438,2]
[329306640,1718230243796,-500.0,0.00016438,2]
[329306641,1718230243806,-502.32206818,0.00016438,2]
[329306642,1718230243816,-500.0,0.00016438,2]
[329306643,1718230243826,-1116.25,0.00016438,2]
[329306644,1718230243836,-500.0,0.00016438,2]
[329306645,1718230243846,-500.0,0.00016438,2]
[329306646,1718230243856,-500.0,0.00016438,2]
[329306647,1718230243867,-500.0,0.00016438,2]
[329306648,1718230243878,-500.0,0.00016438,2]
[329306649,1718230243888,-706.51,0.00016438,2]